[Event "FIDE World Rapid-ch Open 2018"]
[White "Reshetnikov, Alexey"]
[Black "Akopian, Vladimir"]
[Site "St. Petersburg"]
[Round "2.51"]
[Annotator "ChessBase"]
[Result "0-1"]
[Date "2018.12.26"]
[WhiteElo "2492"]
[BlackElo "2650"]
[PlyCount "92"]
[TimeControl "900+10"]

1. d4 {[%emt 0:0:0]} Nf6 {[%emt 0:0:0]} 2. c4 {[%emt 0:0:0]} e6 {[%emt 0:0:0]} 3. Nc3 {[%emt 0:0:0]} c5 {[%emt 0:0:37]} 4. d5 {[%emt 0:0:12]} exd5 {[%emt 0:0:1]} 5. cxd5 {[%emt 0:0:1]} d6 {[%emt 0:0:5]} 6. Nf3 {[%emt 0:0:0]} g6 {[%emt 0:0:3]} 7. Nd2 {[%emt 0:1:14]} Nbd7 {[%emt 0:0:43]} 8. e4 {[%emt 0:0:3]} Bg7 {[%emt 0:0:3]} 9. Be2 {[%emt 0:0:8]} 0-0 {[%emt 0:0:0]} 10. 0-0 {[%emt 0:0:1]} Re8 {[%emt 0:0:20]} 11. Qc2 {[%emt 0:0:16]} Ne5 {[%emt 0:1:19]} 12. h3 {[%emt 0:0:33]} g5 {[%emt 0:0:16]} 13. Nf3 {[%emt 0:0:0]} Nxf3+ {[%emt 0:0:29]} 14. Bxf3 {[%emt 0:0:2]} h6 {[%emt 0:1:16]} 15. a4 {[%emt 0:1:16]} Rb8 {[%emt 0:0:41]} 16. Ra3 {[%emt 0:0:33]} a6 {[%emt 0:0:38]
} 17. Ne2 {[%emt 0:1:13]} b5 {[%emt 0:0:25]} 18. axb5 {[%emt 0:0:0]} axb5 {[%emt 0:0:7]} 19. b4 {[%emt 0:2:2]} Nd7 {[%emt 0:2:48]} 20. Bg4 {[%emt 0:1:24]} cxb4 {[%emt 0:0:39]} 21. Rb3 {[%emt 0:0:42]} Nc5 {[%emt 0:2:9]
} 22. Rxb4 {[%emt 0:0:2]} Bxg4 {[%emt 0:0:8]} 23. hxg4 {[%emt 0:0:1]
} Qc8 {[%emt 0:0:13]} 24. Ng3 {[%emt 0:2:51]} Qxg4 {[%emt 0:0:0]} 25. Be3 {[%emt 0:0:32]} Rbc8 {[%emt 0:1:12]} 26. Bxc5 {[%emt 0:0:9]} Rxc5 {[%emt 0:0:8]} 27. Qd3 {[%emt 0:0:1]} Kf8 {[%emt 0:2:23]} 28. Nf5 {[%emt 0:0:9]
} Be5 {[%emt 0:0:21]} 29. Qd1 {[%emt 0:0:56]} Qxd1 30. Rxd1 Bc3 {[%emt 0:2:8]} 31. Rb3 {[%emt 0:0:1]} Rxe4 {[%emt 0:0:4]} 32. Nxd6 {[%emt 0:0:10]
} Rd4 {[%emt 0:0:29]} 33. Rxd4 {[%emt 0:0:40]} Bxd4 {[%emt 0:0:0]} 34. Nxb5 {[%emt 0:0:21]} Rc1+ {[%emt 0:0:23]} 35. Kh2 {[%emt 0:0:1]
} Bxf2 {[%emt 0:0:1]} 36. Rd3 {[%emt 0:0:22]} Rc5 {[%emt 0:0:13]} 37. Nc3 {[%emt 0:0:3]
} Rc4 {[%emt 0:0:3]} 38. g3 {[%emt 0:0:11]} Rd4 {[%emt 0:0:0]} 39. Rxd4 {[%emt 0:0:15]} Bxd4 {[%emt 0:0:1]} 40. Ne4 {[%emt 0:0:11]} Be5 {[%emt 0:0:2]} 41. Kh3 {[%emt 0:0:2]} f5 {[%emt 0:0:2]} 42. Nc5 {[%emt 0:0:1]
} g4+ {[%emt 0:0:20]} 43. Kh4 {[%emt 0:0:1]} Kf7 {[%emt 0:0:0]} 44. Kh5 {[%emt 0:0:13]} Bxg3 {[%emt 0:0:8]} 45. Kxh6 {[%emt 0:0:6]} Bf4+ {[%emt 0:0:14]} 46. Kh5 {[%emt 0:0:7]} g3 {[%emt 0:0:2]} 0-1

[Event "FIDE World Rapid-ch Open 2018"]
[White "Salem, A.R. Saleh"]
[Black "Belozerov, Andrei"]
[Site "St. Petersburg"]
[Round "2.52"]
[Annotator "ChessBase"]
[Result "1-0"]
[Date "2018.12.26"]
[WhiteElo "2660"]
[BlackElo "2528"]
[PlyCount "135"]
[TimeControl "900+10"]

1. e4 {[%emt 0:0:0]} c6 {[%emt 0:0:0]} 2. d4 {[%emt 0:0:0]} d5 {[%emt 0:0:0]} 3. Nd2 {[%emt 0:0:0]} dxe4 {[%emt 0:0:0]} 4. Nxe4 {[%emt 0:0:0]} Bf5 {[%emt 0:0:0]} 5. Ng3 {[%emt 0:0:0]} Bg6 {[%emt 0:0:0]} 6. h4 {[%emt 0:0:0]
} h6 {[%emt 0:0:0]} 7. Nf3 {[%emt 0:0:2]} Nd7 {[%emt 0:0:0]
} 8. h5 {[%emt 0:0:1]} Bh7 {[%emt 0:0:0]} 9. Bd3 {[%emt 0:0:1]} Bxd3 {[%emt 0:0:0]
} 10. Qxd3 {[%emt 0:0:1]} e6 {[%emt 0:0:0]} 11. Bd2 {[%emt 0:0:0]} Ngf6 {[%emt 0:0:0]} 12. 0-0-0 {[%emt 0:0:2]} Be7 {[%emt 0:0:1]} 13. Kb1 {[%emt 0:0:9]} 0-0 {[%emt 0:0:9]} 14. Ne4 {[%emt 0:0:2]} c5 {[%emt 0:0:0]
} 15. Nxf6+ {[%emt 0:0:29]} Bxf6 {[%emt 0:0:16]} 16. d5 {[%emt 0:0:5]
} c4 {[%emt 0:0:4]} 17. Qxc4 {[%emt 0:0:4]} Nb6 {[%emt 0:0:0]} 18. Qb3 {[%emt 0:0:2]} Qxd5 {[%emt 0:0:8]} 19. Bb4 {[%emt 0:0:22]} Qxb3 {[%emt 0:0:9]} 20. axb3 {[%emt 0:0:6]} Rfc8 {[%emt 0:0:22]} 21. Ba5 {[%emt 0:0:42]
} Nd5 {[%emt 0:0:43]} 22. c4 {[%emt 0:0:11]} b6 {[%emt 0:1:5]
} 23. Bd2 {[%emt 0:1:24]} Ne7 {[%emt 0:0:7]} 24. Be3 {[%emt 0:1:51]} Rd8 {[%emt 0:0:51]
} 25. b4 {[%emt 0:1:28]} Rdc8 {[%emt 0:3:22]} 26. Rc1 {[%emt 0:0:0]} Nc6 {[%emt 0:1:29]} 27. b5 {[%emt 0:1:47]} Na5 {[%emt 0:0:25]} 28. Nd2 {[%emt 0:0:2]} a6 {[%emt 0:3:14]} 29. Bxb6 {[%emt 0:8:6]} axb5 {[%emt 0:0:13]
} 30. c5 {[%emt 0:0:2]} Bg5 {[%emt 0:2:7]} 31. Bxa5 {[%emt 0:0:0]} Rxa5 {[%emt 0:0:4]} 32. Nb3 {[%emt 0:0:0]} Ra4 {[%emt 0:0:16]} 33. Rc2 {[%emt 0:1:35]} Kf8 {[%emt 0:2:35]} 34. Rd1 {[%emt 0:0:9]} Rc4 {[%emt 0:0:39]
} 35. Rd3 {[%emt 0:1:4]} Ke7 {[%emt 0:0:24]} 36. Rd4 {[%emt 0:0:0]} Ra4 {[%emt 0:1:3]} 37. c6 {[%emt 0:0:6]} Bf6 {[%emt 0:0:24]} 38. Rd7+ {[%emt 0:0:11]} Ke8 {[%emt 0:0:1]} 39. Rb7 {[%emt 0:0:4]} Rh4 {[%emt 0:0:15]
} 40. Rxb5 {[%emt 0:0:6]} Rh1+ {[%emt 0:0:21]} 41. Ka2 {[%emt 0:0:2]
} Bd8 {[%emt 0:0:6]} 42. Nd2 {[%emt 0:0:26]} Rd1 {[%emt 0:0:0]} 43. Rb7 {[%emt 0:0:5]} Be7 {[%emt 0:0:28]} 44. b4 {[%emt 0:0:17]} Ra8+ {[%emt 0:0:12]} 45. Kb3 {[%emt 0:0:1]} Rda1 {[%emt 0:0:12]} 46. Kc4 {[%emt 0:0:2]
} R1a4 {[%emt 0:0:13]} 47. Ne4 {[%emt 0:0:15]} Rc8 {[%emt 0:0:0]} 48. Kb3 {[%emt 0:0:2]} Rca8 {[%emt 0:0:6]} 49. Nc5 {[%emt 0:0:12]} Ra3+ {[%emt 0:0:13]} 50. Kc4 {[%emt 0:0:1]} Rc8 {[%emt 0:0:8]} 51. Kb5 {[%emt 0:0:13]
} Ra1 {[%emt 0:0:8]} 52. Nd7 {[%emt 0:0:30]} Rb1 {[%emt 0:0:0]} 53. Rc4 {[%emt 0:0:2]} Bxb4 {[%emt 0:0:30]} 54. Rxb4 {[%emt 0:0:9]} Rxb4+ {[%emt 0:0:2]} 55. Kxb4 {[%emt 0:0:1]} Rxc6 {[%emt 0:0:1]} 56. Nc5 {[%emt 0:0:26]} Rd6 {[%emt 0:0:5]} 57. Kc4 {[%emt 0:0:10]} Rd1 {[%emt 0:0:0]} 58. Ne4 {[%emt 0:0:6]} Rd5 {[%emt 0:0:5]} 59. Rb5 {[%emt 0:0:9]} f5 {[%emt 0:0:13]} 60. Rb8+ {[%emt 0:0:28]} Ke7 {[%emt 0:0:3]} 61. Rb7+ {[%emt 0:0:1]
} Ke8 {[%emt 0:0:19]} 62. Nc5 {[%emt 0:0:2]} Rd2 {[%emt 0:0:0]} 63. Nxe6 {[%emt 0:0:8]} Rxf2 {[%emt 0:0:4]} 64. Rxg7 {[%emt 0:0:3]} f4 {[%emt 0:0:2]} 65. Rg6 {[%emt 0:0:12]} Kf7 {[%emt 0:0:8]} 66. Nd4 {[%emt 0:0:5]
} Ke7 {[%emt 0:0:5]} 67. Kd5 {[%emt 0:0:6]} Kf7 {[%emt 0:0:0]} 68. Ke4 {[%emt 0:0:3]} 1-0

[Event "FIDE World Rapid-ch Open 2018"]
[White "Dreev, Aleksey"]
[Black "Vishnu Prasanna. V"]
[Site "St. Petersburg"]
[Round "2.53"]
[Annotator "ChessBase"]
[Result "1-0"]
[Date "2018.12.26"]
[WhiteElo "2670"]
[BlackElo "2518"]
[PlyCount "107"]
[TimeControl "900+10"]

1. d4 {[%emt 0:0:0]} Nf6 {[%emt 0:0:0]} 2. Nf3 {[%emt 0:0:0]} g6 {[%emt 0:0:0]
} 3. g3 {[%emt 0:0:0]} Bg7 {[%emt 0:0:0]} 4. Bg2 {[%emt 0:0:0]} 0-0 {[%emt 0:0:2]} 5. 0-0 {[%emt 0:0:0]} d6 {[%emt 0:0:9]} 6. b3 {[%emt 0:0:0]
} Nbd7 {[%emt 0:0:22]} 7. Bb2 {[%emt 0:0:4]} Re8 {[%emt 0:0:0]} 8. c4 {[%emt 0:0:56]} c6 {[%emt 0:0:2]} 9. e3 {[%emt 0:1:31]} a6 {[%emt 0:1:43]
} 10. b4 {[%emt 0:2:14]} b5 {[%emt 0:1:20]} 11. Nfd2 {[%emt 0:0:0]} d5 {[%emt 0:0:22]} 12. cxd5 {[%emt 0:1:11]} Nxd5 {[%emt 0:0:24]} 13. Qb3 {[%emt 0:1:52]} e5 {[%emt 0:0:18]} 14. Nc3 {[%emt 0:0:18]} Bb7 {[%emt 0:0:0]} 15. Nxd5 {[%emt 0:0:39]} cxd5 {[%emt 0:0:3]} 16. Bxd5 {[%emt 0:0:0]} Bxd5 {[%emt 0:0:5]} 17. Qxd5 {[%emt 0:0:1]} Nb6 {[%emt 0:0:14]} 18. Qxd8 {[%emt 0:2:4]} Raxd8 {[%emt 0:0:12]} 19. Nb3 {[%emt 0:0:20]} Na4 {[%emt 0:0:25]
} 20. Rab1 {[%emt 0:0:29]} Nxb2 {[%emt 0:0:13]} 21. Rxb2 {[%emt 0:0:1]
} exd4 {[%emt 0:0:3]} 22. exd4 {[%emt 0:0:3]} Bxd4 {[%emt 0:0:0]} 23. Rc2 {[%emt 0:0:3]} Bg7 {[%emt 0:1:3]} 24. Nc5 {[%emt 0:0:28]} Rd6 {[%emt 0:0:18]} 25. Kg2 {[%emt 0:0:20]} Bf8 {[%emt 0:0:12]} 26. Rfc1 {[%emt 0:0:16]
} h5 {[%emt 0:0:52]} 27. h4 {[%emt 0:0:18]} Bh6 {[%emt 0:0:38]
} 28. Rb1 {[%emt 0:0:18]} Rc6 {[%emt 0:0:18]} 29. Rd1 {[%emt 0:1:30]} Rec8 {[%emt 0:1:28]
} 30. Rd7 {[%emt 0:0:55]} a5 {[%emt 0:1:16]} 31. a3 {[%emt 0:0:0]} Bf8 {[%emt 0:0:21]} 32. Rd5 {[%emt 0:0:11]} a4 {[%emt 0:1:35]} 33. Kf3 {[%emt 0:0:32]} Rf6+ {[%emt 0:0:5]} 34. Kg2 {[%emt 0:0:8]} Rfc6 {[%emt 0:0:53]
} 35. Kf3 {[%emt 0:0:27]} Be7 {[%emt 0:0:2]} 36. Ke4 {[%emt 0:0:0]} Bf8 {[%emt 0:0:34]} 37. Kd3 {[%emt 0:0:25]} R6c7 {[%emt 0:0:19]} 38. f3 {[%emt 0:0:23]} Rc6 {[%emt 0:0:4]} 39. f4 {[%emt 0:0:14]} f5 {[%emt 0:0:0]} 40. Re5 {[%emt 0:1:3]} Rd8+ {[%emt 0:0:7]} 41. Ke2 {[%emt 0:0:2]} Kf7 {[%emt 0:0:12]} 42. Rd2 {[%emt 0:0:17]} Rxd2+ 43. Kxd2 {[%emt 0:0:1]} Rc8 {[%emt 0:1:56]} 44. Ne6 {[%emt 0:0:41]} Be7 {[%emt 0:0:33]} 45. Ng5+ {[%emt 0:0:20]
} Bxg5 {[%emt 0:0:27]} 46. hxg5 {[%emt 0:0:1]} Rd8+ {[%emt 0:0:0]} 47. Ke3 {[%emt 0:0:29]} Rb8 {[%emt 0:0:9]} 48. Kd4 {[%emt 0:0:10]} Rb7 {[%emt 0:0:51]} 49. Kc5 {[%emt 0:0:3]} Rc7+ {[%emt 0:0:8]} 50. Kxb5 {[%emt 0:0:1]
} Rc3 {[%emt 0:0:1]} 51. Kxa4 {[%emt 0:0:1]} Rxg3 {[%emt 0:0:0]} 52. b5 h4 53. b6 {[%emt 0:0:20]} h3 {[%emt 0:0:11]} 54. b7 {[%emt 0:0:0]} 1-0

[Event "FIDE World Rapid-ch Open 2018"]
[White "Usmanov, Vasily"]
[Black "Kovalenko, Igor"]
[Site "St. Petersburg"]
[Round "2.54"]
[Annotator "ChessBase"]
[Result "1-0"]
[Date "2018.12.26"]
[WhiteElo "2450"]
[BlackElo "2657"]
[PlyCount "113"]
[TimeControl "900+10"]

1. d4 {[%emt 0:0:0]} Nf6 {[%emt 0:0:0]} 2. c4 {[%emt 0:0:0]} c6 {[%emt 0:0:0]} 3. Nf3 {[%emt 0:0:0]} d5 {[%emt 0:0:0]} 4. cxd5 {[%emt 0:0:0]} cxd5 {[%emt 0:0:0]} 5. Nc3 {[%emt 0:0:0]} Nc6 {[%emt 0:0:0]} 6. Bf4 {[%emt 0:0:2]
} a6 {[%emt 0:0:39]} 7. e3 {[%emt 0:0:6]} Bg4 {[%emt 0:0:1]} 8. h3 {[%emt 0:0:1]} Bxf3 {[%emt 0:0:1]} 9. Qxf3 {[%emt 0:0:2]} e6 {[%emt 0:0:2]
} 10. Bd3 {[%emt 0:0:2]} h6 {[%emt 0:0:5]} 11. 0-0 {[%emt 0:0:0]} Bd6 {[%emt 0:0:9]} 12. Rac1 {[%emt 0:1:42]} 0-0 {[%emt 0:0:19]} 13. a3 {[%emt 0:1:0]} Ne8 {[%emt 0:2:35]} 14. Na4 {[%emt 0:0:49]} Qf6 {[%emt 0:0:0]} 15. Bxd6 {[%emt 0:0:2]} Qxf3 {[%emt 0:0:2]} 16. gxf3 {[%emt 0:0:0]} Nxd6 {[%emt 0:0:1]} 17. Nb6 {[%emt 0:0:10]} Rad8 {[%emt 0:0:16]} 18. f4 {[%emt 0:1:46]} g6 {[%emt 0:1:24]} 19. Rc5 {[%emt 0:0:41]} Kg7 {[%emt 0:0:0]} 20. h4 {[%emt 0:0:26]} h5 {[%emt 0:0:9]} 21. Rfc1 {[%emt 0:0:9]} Rfe8 {[%emt 0:2:8]} 22. Kg2 {[%emt 0:0:24]} Re7 {[%emt 0:1:14]} 23. b4 {[%emt 0:0:36]
} Kf6 {[%emt 0:0:31]} 24. Kh3 {[%emt 0:1:21]} Ree8 {[%emt 0:0:0]} 25. R1c2 {[%emt 0:1:52]} Re7 {[%emt 0:0:35]} 26. Rb2 {[%emt 0:1:3]} Na7 {[%emt 0:2:12]} 27. Rbc2 {[%emt 0:1:20]} Kg7 {[%emt 0:0:26]} 28. Rc7 {[%emt 0:1:5]
} Kf8 {[%emt 0:0:2]} 29. Rxe7 {[%emt 0:0:33]} Kxe7 {[%emt 0:0:0]} 30. Rc7+ {[%emt 0:0:2]} Ke8 {[%emt 0:0:14]} 31. Bxa6 {[%emt 0:0:1]
} Rb8 {[%emt 0:1:21]} 32. Bd3 {[%emt 0:1:26]} Nab5 {[%emt 0:0:49]} 33. Rc5 {[%emt 0:1:24]
} Nxa3 {[%emt 0:0:9]} 34. Kg2 {[%emt 0:0:5]} Rd8 {[%emt 0:0:0]} 35. Kf3 {[%emt 0:0:9]} Ke7 {[%emt 0:0:3]} 36. Ke2 {[%emt 0:0:13]} Kf6 {[%emt 0:0:3]} 37. Kd1 {[%emt 0:0:27]} Nf5 {[%emt 0:0:28]} 38. Ra5 {[%emt 0:0:47]
} Nc4 {[%emt 0:0:6]} 39. Bxc4 {[%emt 0:0:2]} dxc4 {[%emt 0:0:0]} 40. Nxc4 {[%emt 0:0:2]} Rc8 {[%emt 0:0:19]} 41. Rc5 {[%emt 0:0:23]} Ra8 {[%emt 0:0:14]} 42. Rc7 {[%emt 0:0:9]} Nxh4 {[%emt 0:0:4]} 43. Ne5 {[%emt 0:0:8]
} Kf5 {[%emt 0:0:2]} 44. Rxf7+ {[%emt 0:0:22]} Ke4 {[%emt 0:0:0]} 45. Rxb7 {[%emt 0:0:1]} Ra2 {[%emt 0:0:9]} 46. b5 {[%emt 0:0:26]} Rxf2 {[%emt 0:0:1]} 47. b6 {[%emt 0:0:2]} Nf5 {[%emt 0:0:14]} 48. Kc1 {[%emt 0:0:12]
} Nxe3 {[%emt 0:0:11]} 49. Rc7 {[%emt 0:0:7]} Rf1+ {[%emt 0:0:0]} 50. Kb2 {[%emt 0:0:5]} Rf2+ {[%emt 0:0:9]} 51. Kb1 {[%emt 0:0:3]} h4 {[%emt 0:0:21]} 52. b7 {[%emt 0:0:4]} h3 {[%emt 0:0:1]} 53. b8=Q {[%emt 0:0:5]
} h2 {[%emt 0:0:1]} 54. Rc1 {[%emt 0:0:35]} Rg2 {[%emt 0:0:0]} 55. Qb7+ {[%emt 0:0:21]} Nd5 {[%emt 0:0:2]} 56. Qh7 {[%emt 0:0:11]} Kxd4 {[%emt 0:0:40]} 57. Nf3+ {[%emt 0:0:6]} 1-0

[Event "FIDE World Rapid-ch Open 2018"]
[White "Drygalov, Sergey"]
[Black "Jones, Gawain C B"]
[Site "St. Petersburg"]
[Round "2.55"]
[Annotator "ChessBase"]
[Result "1-0"]
[Date "2018.12.26"]
[WhiteElo "2446"]
[BlackElo "2682"]
[PlyCount "73"]
[TimeControl "900+10"]

1. d4 {[%emt 0:0:0]} Nf6 {[%emt 0:0:0]} 2. Nf3 {[%emt 0:0:0]} g6 {[%emt 0:0:0]
} 3. c4 {[%emt 0:0:0]} Bg7 {[%emt 0:0:0]} 4. g3 {[%emt 0:0:0]} 0-0 {[%emt 0:0:0]} 5. Bg2 {[%emt 0:0:2]} c5 {[%emt 0:0:0]} 6. Nc3 {[%emt 0:0:15]
} d6 {[%emt 0:0:4]} 7. 0-0 {[%emt 0:0:25]} Nc6 {[%emt 0:0:1]
} 8. dxc5 {[%emt 0:0:12]} dxc5 {[%emt 0:0:2]} 9. Bf4 {[%emt 0:0:40]} Nh5 {[%emt 0:0:13]
} 10. Be3 {[%emt 0:0:8]} Nd4 {[%emt 0:0:1]} 11. Qd2 {[%emt 0:0:0]} e5 {[%emt 0:0:40]} 12. Nd5 {[%emt 0:2:0]} Nf6 {[%emt 0:1:52]} 13. Nxd4 {[%emt 0:1:38]} exd4 {[%emt 0:1:57]} 14. Bg5 {[%emt 0:0:21]} Bf5 {[%emt 0:2:18]
} 15. a3 {[%emt 0:1:55]} Rc8 {[%emt 0:0:45]} 16. e4 {[%emt 0:0:0]} dxe3 {[%emt 0:0:8]} 17. fxe3 {[%emt 0:0:18]} Ne4 {[%emt 0:3:56]} 18. Bxe4 {[%emt 0:0:6]} Qxg5 {[%emt 0:0:2]} 19. Bxf5 {[%emt 0:0:2]} gxf5 {[%emt 0:0:2]} 20. Rxf5 {[%emt 0:0:1]} Qd8 {[%emt 0:0:20]} 21. Raf1 {[%emt 0:0:23]
} Rc6 {[%emt 0:0:15]} 22. Qf2 {[%emt 0:0:42]} Qe8 {[%emt 0:0:0]} 23. b3 {[%emt 0:0:10]} b6 {[%emt 0:0:27]} 24. Qf4 {[%emt 0:0:14]} Qe6 {[%emt 0:1:50]
} 25. Qg5 {[%emt 0:0:50]} h6 {[%emt 0:1:4]} 26. Qh5 {[%emt 0:0:0]} Rd6 {[%emt 0:0:15]} 27. a4 {[%emt 0:1:10]} Rxd5 {[%emt 0:0:15]} 28. cxd5 {[%emt 0:0:35]} Qxe3+ {[%emt 0:0:1]} 29. Kg2 {[%emt 0:0:11]} Qxb3 {[%emt 0:0:2]
} 30. Rxf7 {[%emt 0:0:28]} Qc2+ {[%emt 0:0:37]} 31. Kh3 {[%emt 0:0:5]
} Rxf7 {[%emt 0:0:8]} 32. Qxf7+ {[%emt 0:0:2]} Kh8 {[%emt 0:0:0]} 33. d6 {[%emt 0:0:22]} Qd3 {[%emt 0:0:38]} 34. d7 {[%emt 0:0:8]} c4 {[%emt 0:0:1]} 35. Rf4 {[%emt 0:0:30]} c3 {[%emt 0:0:45]} 36. Qe8+ {[%emt 0:0:3]
} Kh7 {[%emt 0:0:1]} 37. d8=Q {[%emt 0:0:24]} 1-0

[Event "FIDE World Rapid-ch Open 2018"]
[White "Demchenko, Anton"]
[Black "Sanal, Vahap"]
[Site "St. Petersburg"]
[Round "2.56"]
[Annotator "ChessBase"]
[Result "1-0"]
[Date "2018.12.26"]
[WhiteElo "2679"]
[BlackElo "2490"]
[PlyCount "127"]
[TimeControl "900+10"]

1. e4 {[%emt 0:0:0]} e5 {[%emt 0:0:33]} 2. Nf3 {[%emt 0:0:0]} Nf6 {[%emt 0:0:4]
} 3. Nxe5 {[%emt 0:0:5]} d6 {[%emt 0:0:4]} 4. Nf3 {[%emt 0:0:0]} Nxe4 {[%emt 0:0:2]} 5. Qe2 {[%emt 0:0:8]} Qe7 {[%emt 0:0:5]} 6. d3 {[%emt 0:0:1]} Nf6 {[%emt 0:0:4]} 7. Bg5 {[%emt 0:0:6]} Nbd7 {[%emt 0:0:0]} 8. Nc3 {[%emt 0:0:8]} Qxe2+ {[%emt 0:0:14]} 9. Bxe2 {[%emt 0:0:1]} Be7 {[%emt 0:0:4]} 10. 0-0-0 {[%emt 0:0:6]} 0-0 {[%emt 0:0:56]} 11. h3 {[%emt 0:0:7]
} Re8 {[%emt 0:0:42]} 12. Rde1 {[%emt 0:1:59]} a6 {[%emt 0:0:0]} 13. Bd1 {[%emt 0:1:12]} b5 {[%emt 0:0:35]} 14. Ne2 {[%emt 0:0:26]} Bb7 {[%emt 0:0:13]} 15. Ned4 {[%emt 0:0:33]} g6 {[%emt 0:0:36]} 16. Bd2 {[%emt 0:1:23]
} c5 {[%emt 0:0:34]} 17. Nb3 {[%emt 0:0:8]} Bd5 {[%emt 0:0:0]} 18. Na5 {[%emt 0:0:54]} Rac8 {[%emt 0:0:34]} 19. Kb1 {[%emt 0:3:56]} Nf8 {[%emt 0:0:46]} 20. Rhg1 {[%emt 0:0:40]} Ne6 {[%emt 0:0:37]} 21. Ng5 {[%emt 0:0:21]
} Bf8 {[%emt 0:0:55]} 22. Nxe6 {[%emt 0:1:37]} fxe6 {[%emt 0:0:0]} 23. f4 {[%emt 0:0:33]} Ba8 {[%emt 0:0:17]} 24. g4 {[%emt 0:0:7]} Kf7 {[%emt 0:0:23]} 25. c4 {[%emt 0:1:3]} Nd7 {[%emt 0:1:41]} 26. Ref1 {[%emt 0:0:56]
} Bg7 {[%emt 0:0:47]} 27. f5 {[%emt 0:0:38]} Bd4 {[%emt 0:0:0]} 28. Rg3 {[%emt 0:0:54]} Kg7 {[%emt 0:0:25]} 29. cxb5 {[%emt 0:1:4]} axb5 {[%emt 0:0:2]} 30. a4 {[%emt 0:0:0]} Rb8 {[%emt 0:0:48]} 31. Bc1 {[%emt 0:0:34]
} Be5 {[%emt 0:2:17]} 32. Re3 {[%emt 0:0:3]} exf5 {[%emt 0:0:0]} 33. gxf5 {[%emt 0:0:6]} Nb6 {[%emt 0:0:17]} 34. axb5 {[%emt 0:0:22]} Nd5 {[%emt 0:0:6]} 35. Ree1 {[%emt 0:0:2]} Nb4 {[%emt 0:0:45]} 36. Re3 {[%emt 0:0:18]
} Bd5 {[%emt 0:0:30]} 37. Nc4 {[%emt 0:0:24]} Nxd3 {[%emt 0:0:0]} 38. Nxe5 {[%emt 0:0:1]} Nxe5 {[%emt 0:0:10]} 39. Be2 {[%emt 0:0:2]} gxf5 {[%emt 0:0:43]} 40. Rxf5 {[%emt 0:0:22]} Bf7 {[%emt 0:0:4]} 41. Rf1 {[%emt 0:0:11]
} Bg6+ {[%emt 0:0:14]} 42. Ka2 {[%emt 0:0:1]} c4 {[%emt 0:0:0]} 43. Ra3 {[%emt 0:0:19]} Rb7 {[%emt 0:0:46]} 44. Bd2 {[%emt 0:0:5]} Nd3 {[%emt 0:0:40]} 45. Bc3+ {[%emt 0:0:2]} Kh6 {[%emt 0:0:2]} 46. Bd2+ {[%emt 0:0:0]
} Kg7 {[%emt 0:0:2]} 47. Bc3+ {[%emt 0:0:2]} Kh6 {[%emt 0:0:0]} 48. Bf3 {[%emt 0:0:17]} Be4 {[%emt 0:0:20]} 49. Ra6 {[%emt 0:0:35]} Bxf3 {[%emt 0:0:2]} 50. Rxd6+ {[%emt 0:0:10]} Kg5 {[%emt 0:0:18]} 51. Rxf3 {[%emt 0:0:1]} Re2 {[%emt 0:0:17]} 52. Rg3+ {[%emt 0:0:21]} Kh4 {[%emt 0:0:0]} 53. Rg4+ {[%emt 0:0:6]} Kxh3 {[%emt 0:0:3]} 54. Rxc4 Ne5 {[%emt 0:0:0]} 55. Rc5 {[%emt 0:0:14]} Ng4 {[%emt 0:0:13]} 56. Kb3 {[%emt 0:0:14]} Re3 {[%emt 0:0:9]} 57. Kb4 {[%emt 0:0:13]} Kg3 {[%emt 0:0:5]} 58. b6 {[%emt 0:0:5]
} Nf2 {[%emt 0:0:3]} 59. Rc7 {[%emt 0:0:9]} Rb8 {[%emt 0:0:0]} 60. Kb5 {[%emt 0:0:17]} Ne4 {[%emt 0:0:4]} 61. Rdc6 {[%emt 0:0:4]} Rd3 {[%emt 0:0:22]} 62. Be5+ {[%emt 0:0:7]} Kf3 {[%emt 0:0:2]} 63. Rf7+ {[%emt 0:0:1]
} Ke3 {[%emt 0:0:6]} 64. Bxb8 {[%emt 0:0:1]} 1-0

[Event "FIDE World Rapid-ch Open 2018"]
[White "Lomasov, Semyon"]
[Black "Esipenko, Andrey"]
[Site "St. Petersburg"]
[Round "2.57"]
[Annotator "ChessBase"]
[Result "1/2-1/2"]
[Date "2018.12.26"]
[WhiteElo "2553"]
[BlackElo "2593"]
[PlyCount "29"]
[TimeControl "900+10"]

1. d4 {[%emt 0:0:0]} Nf6 {[%emt 0:0:0]} 2. c4 {[%emt 0:0:0]} g6 {[%emt 0:0:0]} 3. Nc3 {[%emt 0:0:0]} d5 {[%emt 0:0:1]} 4. Bg5 {[%emt 0:0:4]} Ne4 {[%emt 0:0:4]} 5. Bh4 {[%emt 0:0:5]} Nxc3 {[%emt 0:0:4]} 6. bxc3 {[%emt 0:0:1]
} dxc4 {[%emt 0:0:6]} 7. e3 {[%emt 0:0:2]} Be6 {[%emt 0:0:0]} 8. Be2 {[%emt 0:0:2]} Bg7 {[%emt 0:0:34]} 9. Nh3 {[%emt 0:0:2]} Bxh3 {[%emt 0:0:10]} 10. gxh3 {[%emt 0:0:1]} Qd7 {[%emt 0:0:47]} 11. Bg3 {[%emt 0:0:36]
} 0-0 {[%emt 0:0:33]} 12. 0-0 {[%emt 0:0:51]} c5 {[%emt 0:0:0]} 13. dxc5 {[%emt 0:0:53]} Qf5 {[%emt 0:2:39]} 14. Bxc4 {[%emt 0:0:49]} Qxc5 {[%emt 0:0:9]} 15. Qd5 {[%emt 0:2:3]} 1/2-1/2

[Event "FIDE World Rapid-ch Open 2018"]
[White "Bazeev, German"]
[Black "Grigoriants, Sergey"]
[Site "St. Petersburg"]
[Round "2.58"]
[Annotator "ChessBase"]
[Result "1-0"]
[Date "2018.12.26"]
[WhiteElo "2416"]
[BlackElo "2540"]
[PlyCount "58"]
[TimeControl "900+10"]

1. d4 {[%emt 0:0:0]} Nf6 {[%emt 0:0:0]} 2. Nf3 {[%emt 0:0:0]} g6 {[%emt 0:0:1]
} 3. c4 {[%emt 0:0:0]} Bg7 {[%emt 0:0:2]} 4. Nc3 {[%emt 0:0:0]} d5 {[%emt 0:0:4]} 5. cxd5 {[%emt 0:0:17]} Nxd5 {[%emt 0:0:2]} 6. Qa4+ {[%emt 0:0:2]} Nc6 {[%emt 0:2:40]} 7. e4 {[%emt 0:0:1]} Nb6 {[%emt 0:0:0]} 8. Qc2 {[%emt 0:0:2]} 0-0 {[%emt 0:0:43]} 9. d5 {[%emt 0:0:14]} Nb8 {[%emt 0:1:46]
} 10. a4 {[%emt 0:1:14]} c6 {[%emt 0:0:23]} 11. a5 {[%emt 0:0:0]} N6d7 {[%emt 0:0:1]} 12. Be2 {[%emt 0:0:37]} Nf6 {[%emt 0:0:58]} 13. 0-0 {[%emt 0:0:47]} cxd5 {[%emt 0:0:8]} 14. Rd1 {[%emt 0:0:1]} Qc7 {[%emt 0:2:11]
} 15. exd5 {[%emt 0:1:23]} Na6 {[%emt 0:0:2]} 16. Qb3 {[%emt 0:0:14]
} Bd7 {[%emt 0:1:25]} 17. Be3 {[%emt 0:0:15]} Rfc8 {[%emt 0:0:0]} 18. h3 {[%emt 0:0:11]} Nc5 {[%emt 0:0:34]} 19. Qb4 {[%emt 0:0:2]} b6 {[%emt 0:0:47]
} 20. a6 {[%emt 0:0:22]} Ne8 {[%emt 0:2:16]} 21. Nd4 {[%emt 0:0:0]} Nd6 {[%emt 0:0:57]} 22. Bf4 {[%emt 0:0:1]} Qd8 {[%emt 0:0:4]} 23. Bf3 {[%emt 0:0:52]} Nxa6 {[%emt 0:1:39]} 24. Rxa6 {[%emt 0:0:1]} Rc4 {[%emt 0:0:1]
} 25. Bxd6 {[%emt 0:0:2]} Qc8 {[%emt 0:0:10]} 26. Be2 {[%emt 0:1:48]
} Rxb4 {[%emt 0:0:15]} 27. Bxb4 {[%emt 0:0:2]} Qc7 {[%emt 0:0:0]} 28. Nc6 {[%emt 0:1:11]} Bxc6 {[%emt 0:0:12]} 29. dxc6 Bf8 1-0